Cogmind - Beta 9.6 @@@ ROGUE MODE // 2020.04.20 @ 22:50:13 Player: Ape Result: Destroyed by G-67 Veteran with Electrolaser Performance ------------- Evolutions (6) 3000 Regions Visited (20) 4000 Robots Destroyed (193) 965 Value Destroyed (7290) 7290 Prototype IDs (41) 820 Alien Tech Used (1) 200 Bonus (4725) 4725 TOTAL SCORE: 21000 Bonus ------- High Alert Combat Kills 476 Follower Combat Kills 594 Met Data Miner 300 Met Imprinter 300 Was Imprinted 300 Met Warlord at Base 500 MAIN.C Attacked Warlord 500 Warlord Defense Kill 2510 Friendly Fire -755 Cogmind --------- Core Integrity 0/1150 Matter 285/300 Energy 87/100 System Corruption 0% Temperature Cool (23) Movement Flying (40) Location -4/Factory Parts ------- > --- POWER (2) -------- (None) > --- PROPULSION (6) --- Improved Gyrokinetic Inverter Nuclear Pulse Array > --- UTILITY (8) ------ Advanced Signal Interpreter Advanced Melee Analysis Suite > --- WEAPON (4) ------- (None) > --- INVENTORY (4) ---- Micro Fission Core Micro Fission Core Large Storage Unit Energy Well (479) Peak State ------------ > --- POWER ------------ Vortex Chain Reactor > --- PROPULSION ------- Medium Treads Improved Medium Treads Armored Heavy Treads > --- UTILITY ---------- High-capacity Storage Unit Humpback Experimental Energy Well Advanced Signal Interpreter Advanced Targeting Computer Advanced Powered Armor 7V-RTL's Ultimate Field > --- WEAPON ----------- Scatter Rocket Array Smartbomb Launcher Makeshift Axe > --- INVENTORY -------- Reinforced Antimatter Reactor Reinforced Quantum Reactor Armored Treads Armored Treads Medium Treads Improved Cryofiber Web Advanced Cooling System Advanced Cooling System Improved Coolant Injector High-capacity Storage Unit High-capacity Storage Unit High-capacity Battery Experimental Energy Well High-capacity Matter Pod Spectral Analyzer Long-range Sensor Array Experimental Targeting Computer Armor Integrity Analyzer Layered Medium Armor Plating Insulated Plating Advanced Remote Shield Mobile Refinery Mk. CCLXVII Vortex Shotgun Vortex Shotgun Phase Cannon Phase Cannon Heavy Flak Cannon Heavy Flak Cannon Heavy Flak Cannon Heavy Shock Bomb Launcher Vortex Lance Vortex Lance [Rating: 120] Favorites ----------- Power Improved Deuterium Engine Engine Improved Deuterium Engine Power Core Neutrino Core Reactor Reinforced Quantum Reactor Propulsion Light Treads Treads Light Treads Leg Aluminum Leg Hover Unit Improved Gyrokinetic Inverter Flight Unit Cooled Impulse Thruster Utility Humpback Device Long-range Sensor Array Storage Humpback Processor Advanced Targeting Computer Hackware System Shield Protection Advanced Powered Armor Weapon Heavy Flak Cannon Energy Gun Small Laser Energy Cannon Advanced Plasma Cannon Ballistic Gun Flak Gun Ballistic Cannon Heavy Flak Cannon Launcher Smartbomb Launcher Special Weapon Improved Plasma Cutter Slashing Weapon Makeshift Axe Piercing Weapon Force Lance Build | -11 -10 -10 -10 -9 -8 -7 -7 -7 -7 -6 -6 -6 -6 -5 -5 -5 -5 -5 -4 -4 ------- Run | Scr Mat Min Exi Min Mat Fac Low Low Dat Pro Fac Low Zio Pro Fac Upp Upp War Pro Fac Slots Evolved 12 | . . . . . 4 2 . . . . 2 . . . 2 . . . . 2 Power . | . . . . . . . . . . . . . . . . . . . . . Propulsion 4 | . . . . . 1 1 . . . . . . . . . . . . . 2 Utility 6 | . . . . . 1 1 . . . . 2 . . . 2 . . . . . Weapon 2 | . . . . . 2 . . . . . . . . . . . . . . . Parts Attached 260 | . 11 . 2 3 12 22 2 17 . 5 17 1 7 16 55 12 3 36 10 29 Power 27 | . 1 . . 1 1 1 1 1 . . . . 1 1 6 1 . 4 3 5 Engine 11 | . . . . 1 . 1 . 1 . . . . . 1 3 . . 1 2 1 Core 7 | . 1 . . . 1 . . . . . . . 1 . 1 1 . . . 2 Reactor 9 | . . . . . . . 1 . . . . . . . 2 . . 3 1 2 Propulsion 55 | . 3 . 1 2 3 5 . 4 . . 1 . . 5 3 . 1 10 3 14 Treads 17 | . . . . . . 1 . 4 . . 1 . . 5 3 . 1 2 . . Leg 15 | . 3 . 1 2 3 4 . . . . . . . . . . . 2 . . Wheel . | . . . . . . . . . . . . . . . . . . . . . Hover 14 | . . . . . . . . . . . . . . . . . . 5 . 9 Flight 9 | . . . . . . . . . . . . . . . . . . 1 3 5 Utility 98 | . 1 . 1 . 1 3 1 7 . 3 11 1 2 5 33 4 1 11 4 9 Device 53 | . . . . . 1 1 1 3 . 2 6 1 2 4 20 4 1 3 1 3 Storage 18 | . 1 . 1 . . 1 . 3 . . . . . . 1 . . 5 2 4 Processor 6 | . . . . . . . . . . . 2 . . . . . . 1 1 2 Hackware 1 | . . . . . . . . . . . . . . . 1 . . . . . Protection 20 | . . . . . . 1 . 1 . 1 3 . . 1 11 . . 2 . . Artifact . | . . . . . . . . . . . . . . . . . . . . . Weapon 80 | . 6 . . . 7 13 . 5 . 2 5 . 4 5 13 7 1 11 . 1 Energy Gun 3 | . 1 . . . . . . . . . . . . . . . . 2 . . Energy Cannon 4 | . 1 . . . 1 . . . . . . . . . 2 . . . . . Ballistic Gun 20 | . 2 . . . 1 5 . 4 . 1 2 . 1 2 2 . . . . . Ballistic Cannon 20 | . 2 . . . 4 2 . . . . 2 . 1 1 4 3 . 1 . . Launcher 13 | . . . . . 1 1 . 1 . 1 . . 2 1 . 3 . 3 . . Special Weapon 3 | . . . . . . . . . . . . . . . . . . 3 . . Impact Weapon . | . . . . . . . . . . . . . . . . . . . . . Slashing Weapon 16 | . . . . . . 5 . . . . 1 . . 1 5 1 1 2 . . Piercing Weapon 1 | . . . . . . . . . . . . . . . . . . . . 1 Special Melee Weapon . | . . . . . . . . . . . . . . . . . . . . . Unidentified Prototypes 11 | . . . . . . . . . . . . . 3 1 1 . . 6 . . Parts Lost 59 | . 4 . 1 . 3 1 . 7 . . . . . . 2 . . 17 4 20 Power 9 | . . . 1 . 1 . . 1 . . . . . . 1 . . 1 . 4 Propulsion 22 | . 1 . . . 1 . . 2 . . . . . . . . . 5 3 10 Utility 10 | . . . . . . 1 . 1 . . . . . . . . . 3 . 5 Weapon 18 | . 3 . . . 1 . . 3 . . . . . . 1 . . 8 1 1 Highest Loss Streak 13 | . 3 . 1 . 1 1 . 2 . . . . . . 1 . . 12 6 13 Average Slot Usage (%) 88 | . 99 100 92 85 89 91 92 90 92 92 92 93 92 93 90 87 88 75 52 54 Engine 3 | . 2 . . 2 7 3 4 6 7 7 6 6 3 4 5 2 . . 2 . Core 3 | . 11 14 14 11 1 3 . . . . . . 2 6 1 2 5 2 . 2 Reactor 1 | . . . . . . . 2 . . . . . . . 3 5 5 4 . . Treads 13 | . . . . . . . . 11 30 30 26 26 26 25 19 16 16 12 . . Leg 8 | . 28 28 28 28 26 29 30 18 . . . . . . . . . . . . Device 9 | . . . . . 9 7 7 7 7 6 8 13 13 7 12 12 16 11 . 1 Storage 8 | . 27 28 20 14 9 8 15 8 7 7 6 6 6 6 5 5 5 9 10 11 Processor 7 | . . . . . . . . . . . 9 13 13 12 11 11 11 11 16 18 Protection 4 | . . . . . . 5 . 6 7 7 6 . . 4 9 9 5 2 . . Energy Cannon 3 | . 6 . . . . . . . . . . . . . 4 11 11 6 . . Ballistic Gun 7 | . 9 . . . 2 11 7 22 30 29 21 13 11 6 4 . . . . . Ballistic Cannon 11 | . 5 28 28 28 33 15 15 6 . . 3 13 14 17 11 7 7 3 . . Slashing Weapon 1 | . . . . . . 2 7 . . . . . . . . 2 3 3 . . Naked Turns . | . . . . . . . . . . . . . . . . . . . . . Heaviest Build 212 | 10 49 49 93 97 108 120 118 118 112 114 119 117 121 141 177 197 178 212 62 100 Greatest Support 118 | 20 20 20 20 30 45 70 70 80 80 80 80 80 80 96 116 116 116 118 64 105 Greatest Overweight (x) 4 | . 2 2 4 4 2 2 1 2 1 1 1 1 1 1 1 1 1 3 3 3 Average Overweight (x) 1 | . 1 2 2 3 2 1 1 1 1 1 1 1 1 1 1 1 1 . . . Largest Inventory Capacity 40 | . 14 14 24 24 24 24 24 40 24 24 24 24 24 24 24 24 24 32 18 18 Average Capacity 22 | . 13 14 19 24 24 24 24 23 24 24 24 24 24 24 24 24 24 24 12 11 Most Carried 32 | . 14 14 18 24 24 24 24 24 19 24 24 24 24 24 24 24 24 32 13 14 Average Carried 21 | . 11 14 14 19 23 23 23 19 19 20 23 24 23 23 23 23 23 23 10 10 Final Capacity 24 | 6 14 14 24 24 24 24 24 24 24 24 24 24 24 24 24 24 24 12 18 4 Final Carried 24 | 6 14 14 18 24 24 23 24 19 19 24 24 24 24 24 24 24 24 11 13 4 Class Distribution -------------------- 26% | Messiah-Skirmisher 16% | Hauler-Tank 15% | Messiah-Tank 11% | Hauler-Skirmisher 7% | Messiah-Mutant 7% | Mutant 5% | Scavenger-Gunner 4% | Hauler-Mutant 3% | Hauler-Gunner Dominant Class ---------------- Mutant | -10/Materials Mutant | -10/Mines Hauler-Mutant | -10/Exiles Hauler-Mutant | -9/Mines Scavenger-Gunner | -8/Materials Hauler-Tank | -7/Factory Hauler-Skirmisher | -7/Lower Caves Hauler-Tank | -7/Lower Caves Hauler-Tank | -7/Data Miner Hauler-Tank | -6/Proximity Caves Scavenger-Gunner | -6/Factory Hauler-Skirmisher | -6/Lower Caves Messiah-Skirmisher | -6/Zion Messiah-Skirmisher | -5/Proximity Caves Messiah-Tank | -5/Factory Messiah-Tank | -5/Upper Caves Messiah-Skirmisher | -5/Upper Caves Messiah-Mutant | -5/Warlord Messiah-Mutant | -4/Proximity Caves Messiah-Mutant | -4/Factory Resources | -11 -10 -10 -10 -9 -8 -7 -7 -7 -7 -6 -6 -6 -6 -5 -5 -5 -5 -5 -4 -4 ----------- Run | Scr Mat Min Exi Min Mat Fac Low Low Dat Pro Fac Low Zio Pro Fac Upp Upp War Pro Fac Matter Collected 7378 | 200 141 58 60 54 998 575 245 786 . 129 772 66 112 242 1604 302 115 647 77 195 Remotely . | . . . . . . . . . . . . . . . . . . . . . Salvage Created 6919 | . 428 81 . 64 683 534 157 765 . 71 821 . . 135 2309 220 . 561 90 . Parts 302 | . 33 3 . 3 46 30 1 24 . 7 23 . . 10 83 8 . 27 4 . Haulers Intercepted 3 | . 1 . . . 2 . . . . . . . . . . . . . . . Recyclers Shooed 9 | . . . . . 1 2 . . . . 1 . . . 5 . . . . . Parts Field Recycled . | . . . . . . . . . . . . . . . . . . . . . Retrieved Matter . | . . . . . . . . . . . . . . . . . . . . . Parts Self-Destructed 189 | . . . . . . . . 19 . 6 . . . 14 . 8 10 123 9 . Prevented 24 | . . . . . . . . . . . . 1 . 2 . . . 17 4 . Kills | -11 -10 -10 -10 -9 -8 -7 -7 -7 -7 -6 -6 -6 -6 -5 -5 -5 -5 -5 -4 -4 ------- Run | Scr Mat Min Exi Min Mat Fac Low Low Dat Pro Fac Low Zio Pro Fac Upp Upp War Pro Fac Combat Hostiles Destroyed 145 | . 9 3 . 2 19 7 1 17 . 3 14 . . 6 29 8 . 24 3 . Melee 1 | . . . . . . 1 . . . . . . . . . . . . . . Guns 25 | . 5 . . . 2 . 1 4 . . 12 . . . . . . 1 . . Cannons 61 | . 3 3 . 2 12 3 . 6 . . 2 . . 2 25 3 . . . . AOE 57 | . 1 . . . 5 3 . 7 . 3 . . . 4 4 5 . 22 3 . Classes Destroyed 22 | . 4 . . 1 6 1 1 2 . 1 1 . . . 1 . . 4 . . Worker 4 | . . . . . 1 2 . . . . . . . . 1 . . . . . Builder 13 | . . . . . 4 5 . . . . . . . . 4 . . . . . Tunneler 1 | . . . . . . . . . . . 1 . . . . . . . . . Hauler 3 | . 1 . . . 2 . . . . . . . . . . . . . . . Recycler 14 | . . . . . 1 4 . . . . 2 . . . 7 . . . . . Minesweeper 1 | . . . . . . . . . . 1 . . . . . . . . . . Mechanic 1 | . . . . . . . . 1 . . . . . . . . . . . . Operator 1 | . . . . . 1 . . . . . . . . . . . . . . . Watcher 4 | . 2 . . . . . . . . . . . . . 2 . . . . . Swarmer 31 | . 2 . . . 4 3 . 1 . 3 3 . . 4 . 5 . 3 3 . Saboteur 5 | . . . . . . . . . . . . . . . . . . 5 . . Grunt 57 | . 7 3 . 1 7 2 . 10 . . 4 . . 1 12 2 . 8 . . Brawler 8 | . . . . . . . . 5 . . 1 . . . 1 . . 1 . . Duelist 5 | . . . . 1 . . . . . . 2 . . 1 1 . . . . . Protector 1 | . . . . . . . . . . . . . . . 1 . . . . . Sentry 13 | . . . . . 5 . . 2 . . 4 . . . 1 1 . . . . Demolisher 1 | . . . . . . . . . . . . . . . . . . 1 . . Specialist 1 | . . . . . . . . . . . . . . . . . . 1 . . Hunter 9 | . . . . . 3 . 1 . . . . . . . 4 . . 1 . . Programmer 15 | . . . . . . 2 . . . . . . . . 10 . . 3 . . Striker 1 | . . . . . . . . . . . . . . . . . . 1 . . Decomposer 1 | . . . . . . . 1 . . . . . . . . . . . . . Packrat 2 | . . . . . . . 1 1 . . . . . . . . . . . . Mutant 1 | . . . . . . . 1 . . . . . . . . . . . . . Best Kill Streak 15 | . 3 3 . 2 15 8 1 14 . 3 9 . . 6 5 5 . 10 3 . Combat Bots Only 13 | . 3 3 . 2 8 3 1 13 . 3 9 . . 6 4 5 . 10 3 . Max Kills in Single Turn 6 | . 1 2 . 1 5 3 1 3 . 2 2 . . 4 3 4 . 6 2 . Gunslinging 1 | . . . . . . . . . . . 1 . . . . . . . . . Exploded 6 | . 1 . . . 2 2 . 3 . 2 . . . 4 3 4 . 6 2 . Melee 1 | . . . . . . 1 . . . . . . . . . . . . . . Uniques/NPCs Destroyed . | . . . . . . . . . . . . . . . . . . . . . Combat | -11 -10 -10 -10 -9 -8 -7 -7 -7 -7 -6 -6 -6 -6 -5 -5 -5 -5 -5 -4 -4 -------- Run | Scr Mat Min Exi Min Mat Fac Low Low Dat Pro Fac Low Zio Pro Fac Upp Upp War Pro Fac Damage Taken 12771 | . 566 55 . 10 837 529 108 1182 . 35 907 . . 46 1870 236 . 3202 533 2655 Core 2394 | . 81 . . 10 135 67 . 140 . . 57 . . . 73 . . 480 200 1151 Absorbed by Shields 1491 | . . . . . . . . . . . . . . . 17 36 . 1398 . 40 Core Remaining (%) 70 | 100 . . . 63 75 . . . . 70 . . . 93 . . . . 24 . Volleys Fired 307 | . 40 6 . 3 45 31 4 30 . 5 37 . . 3 70 7 . 24 2 . Largest 4 | . 2 2 . 2 4 4 3 4 . 4 4 . . 4 4 4 . 1 1 . Hottest 294 | . 85 78 . 78 177 152 124 152 . 106 134 . . 192 269 294 . 90 43 . Shots Fired 884 | . 65 12 . 6 171 74 12 88 . 11 146 . . 9 242 21 1 24 2 . Gun 349 | . 55 . . . 15 26 4 48 . 8 129 . . 2 55 . . 7 . . Cannon 496 | . 10 12 . 6 153 43 8 33 . . 17 . . 6 187 18 1 2 . . Launcher 39 | . . . . . 3 5 . 7 . 3 . . . 1 . 3 . 15 2 . Special . | . . . . . . . . . . . . . . . . . . . . . Kinetic 725 | . 32 12 . 6 167 69 12 81 . 8 146 . . 8 175 9 . . . . Thermal 105 | . 25 . . . 1 . . . . . . . . . 67 9 1 2 . . Explosive 32 | . . . . . 3 5 . 7 . 3 . . . 1 . 2 . 11 . . Electromagnetic 15 | . 8 . . . . . . . . . . . . . . 1 . 4 2 . Entropic 7 | . . . . . . . . . . . . . . . . . . 7 . . Robot Hit Streak 21 | . 8 4 . 5 13 5 12 8 . 4 21 . . 4 16 20 . 11 5 . Robot Miss Streak 11 | . 4 2 . 1 4 3 1 11 . 9 7 . . 6 4 2 . 4 . . Penetration Max 1 | . . . . . 1 1 . 1 . . . . . . . . . . . . Secondary Targets 3 | . . . . . . . . . . . 3 . . . . . . . . . Max Gunslinging Chain 1 | . . . . . . . . . . . 1 . . . . . . . . . Shots Hit Robots 596 | . 38 8 . 5 85 34 14 58 . 9 134 . . 6 173 15 . 15 2 . Core Hits 532 | . 17 5 . 3 43 28 4 50 . 10 83 . . 12 176 17 . 80 4 . Critical Hits 8 | . . 1 . . 3 2 . . . 1 . . . . 1 . . . . . Critical Kills 3 | . . . . . 1 1 . . . . . . . . 1 . . . . . Critical Parts Destroyed 5 | . . 1 . . 2 1 . . . 1 . . . . . . . . . . Melee Attacks 89 | . . . . . . 16 5 . . . 3 . . 1 22 15 13 13 . 1 Impact . | . . . . . . . . . . . . . . . . . . . . . Slashing 88 | . . . . . . 16 5 . . . 3 . . 1 22 15 13 13 . . Piercing 1 | . . . . . . . . . . . . . . . . . . . . 1 Sneak Attacks 4 | . . . . . . . 3 . . . . . . . 1 . . . . . Combat Hostiles . | . . . . . . . . . . . . . . . . . . . . . Follow-up Attacks . | . . . . . . . . . . . . . . . . . . . . . Damage Inflicted 20953 | . 643 208 . 124 2651 1523 511 1952 . 236 1802 . . 316 6126 743 . 3996 122 . Guns 4309 | . 460 . . . 280 373 61 500 . 112 1303 . . 25 674 . . 521 . . Cannons 7809 | . 69 208 . 124 1465 589 144 644 . . 493 . . 48 3707 318 . . . . Explosions 8352 | . 114 . . . 906 490 . 808 . 124 . . . 243 1645 425 . 3475 122 . Melee 406 | . . . . . . . 306 . . . . . . . 100 . . . . . Ramming 77 | . . . . . . 71 . . . . 6 . . . . . . . . . Kinetic 9554 | . 267 208 . 124 1721 962 205 1144 . 112 1796 . . 73 2811 131 . . . . Thermal 2569 | . 301 . . . 24 . . . . . . . . . 2057 187 . . . . Explosive 7398 | . . . . . 906 490 . 808 . 124 . . . 243 1158 420 . 3249 . . Electromagnetic 428 | . 75 . . . . . . . . . . . . . . 5 . 226 122 . Impact . | . . . . . . . . . . . . . . . . . . . . . Slashing 406 | . . . . . . . 306 . . . . . . . 100 . . . . . Piercing . | . . . . . . . . . . . . . . . . . . . . . Entropic 521 | . . . . . . . . . . . . . . . . . . 521 . . Highest Corruption 11 | . . . . . . . . . . . . . . . 6 6 6 11 5 . Average Corruption 5 | . . . . . . . . . . . . . . . 3 6 6 5 5 . Corruption Purged . | . . . . . . . . . . . . . . . . . . . . . Effects 133 | . . . . . . . . . . . . . . . 15 60 34 14 10 . Message Errors 34 | . . . . . . . . . . . . . . . 5 17 7 2 3 . Matter Fused 26 | . . . . . . . . . . . . . . . 1 10 10 4 1 . Heat Flow Errors 21 | . . . . . . . . . . . . . . . 1 10 7 1 2 . Energy Discharges 16 | . . . . . . . . . . . . . . . . 9 5 . 2 . Parts Rejected 1 | . . . . . . . . . . . . . . . . . . 1 . . Data Loss (minor) 21 | . . . . . . . . . . . . . . . 3 11 4 2 1 . Data Loss (major) 3 | . . . . . . . . . . . . . . . 1 . . 1 1 . Misfires 3 | . . . . . . . . . . . . . . . . 2 1 . . . Misdirections 1 | . . . . . . . . . . . . . . . . . . 1 . . Targeting Errors 6 | . . . . . . . . . . . . . . . 3 1 . 2 . . Weapon Failures 1 | . . . . . . . . . . . . . . . 1 . . . . . Overload Shots . | . . . . . . . . . . . . . . . . . . . . . Overflow Damage 597 | . 17 . . . 131 2 88 13 . . . . . . 239 24 . 58 25 . Projectiles 121 | . . . . . 60 . . . . . . . . . 61 . . . . . Explosions 318 | . 17 . . . 71 2 . 13 . . . . . . 108 24 . 58 25 . Melee 158 | . . . . . . . 88 . . . . . . . 70 . . . . . Knockbacks 72 | . . 4 . 2 6 10 . 5 . . 2 . . 1 42 . . . . . Impact 1 | . . . . . . 1 . . . . . . . . . . . . . . Kinetic 64 | . . 3 . 1 6 8 . 5 . . 2 . . 1 38 . . . . . Secondary 7 | . . 1 . 1 . 1 . . . . . . . . 4 . . . . . Self-Inflicted Damage 312 | . 67 . . . . 25 . . . 6 . . . 13 71 19 . 57 54 . Shots 10 | . 1 . . . . 1 . . . 1 . . . 1 1 1 . 2 2 . Rammed 4 | . . . . . . 3 . . . . 1 . . . . . . . . . Targets Rammed 9 | . . . . . . 8 . . . . 1 . . . . . . . . . Kicked 5 | . . . . . . 5 . . . . . . . . . . . . . . Crushed . | . . . . . . . . . . . . . . . . . . . . . Highest Temperature 503 | . 127 152 . 78 198 72 141 209 . 60 15 . . 252 306 503 126 107 109 410 Average Temperature 80 | . 55 81 . 40 59 23 81 84 . 32 6 . . 150 75 161 55 26 61 242 Received Heat Transfer 1973 | . 225 33 . 6 171 189 . 528 . . 228 . . . 302 11 . 106 . 174 Effects 3 | . . . . . . . . . . . . . . . . 1 . . . 2 Shutdowns 1 | . . . . . . . . . . . . . . . . 1 . . . . Interference 1 | . . . . . . . . . . . . . . . . . . . . 1 Damage (minor) 1 | . . . . . . . . . . . . . . . . . . . . 1 Siege Activations . | . . . . . . . . . . . . . . . . . . . . . Robots Corrupted 1 | . . . . . . . . . . . . . . . . . . 1 . . Combat Hostiles 1 | . . . . . . . . . . . . . . . . . . 1 . . Parts Fried 4 | . . . . . . . . . . . . . . . . . . 3 1 . Impact Corruptions . | . . . . . . . . . . . . . . . . . . . . . Robots Melted . | . . . . . . . . . . . . . . . . . . . . . Combat Hostiles . | . . . . . . . . . . . . . . . . . . . . . Parts Melted 4 | . 1 . . . . . . . . . . . . . 3 . . . . . Heat Transferred 3097 | . 459 . . . 37 . . . . . . . . . 2353 248 . . . . Parts Sabotaged . | . . . . . . . . . . . . . . . . . . . . . Parts Stolen . | . . . . . . . . . . . . . . . . . . . . . Parts Stripped . | . . . . . . . . . . . . . . . . . . . . . Power Chain Reactions 1 | . . . . . . . . . . . . . . . . 1 . . . . Missiles Intercepted . | . . . . . . . . . . . . . . . . . . . . . Alert | -11 -10 -10 -10 -9 -8 -7 -7 -7 -7 -6 -6 -6 -6 -5 -5 -5 -5 -5 -4 -4 ------- Run | Scr Mat Min Exi Min Mat Fac Low Low Dat Pro Fac Low Zio Pro Fac Upp Upp War Pro Fac Peak Influence 1099 | . 291 107 . 81 467 448 . . . . 455 . . . 1099 . . . . 594 Average Influence 247 | . 108 44 . 20 245 232 . . . . 209 . . . 405 . . . . 224 Maximum Alert Level 3 | . 1 . . . 2 2 . . . . 2 . . . 3 . . . . 2 Low Security (%) 51 | . 84 100 . 100 36 43 . . . . 48 . . . 36 . . . . 48 Level 1 31 | . 15 . . . 57 50 . . . . 39 . . . 23 . . . . 34 Level 2 10 | . . . . . 5 5 . . . . 12 . . . 18 . . . . 16 Level 3 6 | . . . . . . . . . . . . . . . 21 . . . . . Level 4 . | . . . . . . . . . . . . . . . . . . . . . Level 5 . | . . . . . . . . . . . . . . . . . . . . . High Security . | . . . . . . . . . . . . . . . . . . . . . Max Security . | . . . . . . . . . . . . . . . . . . . . . Squads Dispatched 34 | . 2 . . . 5 3 . 1 . . 7 . . . 11 . . . . 5 Investigation 15 | . 2 . . . 3 1 . . . . 4 . . . 3 . . . . 2 Extermination 6 | . . . . . . 1 . . . . . . . . 4 . . . . 1 Reinforcement 5 | . . . . . 2 1 . . . . . . . . 1 . . . . 1 Assault 5 | . . . . . . . . 1 . . . . . . 3 . . . . 1 Garrison 3 | . . . . . . . . . . . 3 . . . . . . . . . Intercept . | . . . . . . . . . . . . . . . . . . . . . Construction Impeded 2 | . . . . . . 1 . . . . . . . . 1 . . . . . Haulers Reinforced . | . . . . . . . . . . . . . . . . . . . . . Stealth | -11 -10 -10 -10 -9 -8 -7 -7 -7 -7 -6 -6 -6 -6 -5 -5 -5 -5 -5 -4 -4 --------- Run | Scr Mat Min Exi Min Mat Fac Low Low Dat Pro Fac Low Zio Pro Fac Upp Upp War Pro Fac Distress Signals 10 | . 3 . . . 3 1 . . . . 1 . . . 1 . . . . 1 Communications Jammed . | . . . . . . . . . . . . . . . . . . . . . Distress Signals . | . . . . . . . . . . . . . . . . . . . . . Times Spotted 266 | . 13 4 . 3 30 12 1 20 . 4 18 . . 7 59 7 . 41 7 40 Peak Tracking Total 16 | . 3 3 . 3 9 5 1 10 . 3 5 . . 4 6 5 . 16 3 16 Tactical Retreats 24 | . . 1 . . 1 1 . . . . 2 . . . 7 1 . 4 1 6 Traps | -11 -10 -10 -10 -9 -8 -7 -7 -7 -7 -6 -6 -6 -6 -5 -5 -5 -5 -5 -4 -4 ------- Run | Scr Mat Min Exi Min Mat Fac Low Low Dat Pro Fac Low Zio Pro Fac Upp Upp War Pro Fac Traps Triggered 7 | . . . . . 1 . . . . . . . . . 3 . . . . 3 Indirectly . | . . . . . . . . . . . . . . . . . . . . . Trap Hack Attempts . | . . . . . . . . . . . . . . . . . . . . . Triggered . | . . . . . . . . . . . . . . . . . . . . . Disarmed . | . . . . . . . . . . . . . . . . . . . . . Reprogrammed . | . . . . . . . . . . . . . . . . . . . . . Reused 1 | . . . . . . . . . . . . . . . . . . 1 . . Traps Extracted . | . . . . . . . . . . . . . . . . . . . . . Installed 21 | . . . . . . . 5 . . 5 . 8 . 1 1 . . 1 . . Triggered 20 | . . . . . . . 1 . . . . . . . . . . 18 1 . Machines | -11 -10 -10 -10 -9 -8 -7 -7 -7 -7 -6 -6 -6 -6 -5 -5 -5 -5 -5 -4 -4 ---------- Run | Scr Mat Min Exi Min Mat Fac Low Low Dat Pro Fac Low Zio Pro Fac Upp Upp War Pro Fac Machines Disabled 25 | . 1 . . . 2 1 . 2 . . . . . . 14 . . . . 5 Max in Single Turn 4 | . 1 . . . 1 1 . 1 . . . . . . 4 . . . . . Garrison Access 3 | . . . . . . 1 . . . . 1 . . . . . . . . 1 Machines Sabotaged . | . . . . . . . . . . . . . . . . . . . . . Garrisons Compromised . | . . . . . . . . . . . . . . . . . . . . . Overloaded Fab Kills 1 | . . . . . . . . . . . . . . . . . . . . 1 Fab Network Shutdowns . | . . . . . . . . . . . . . . . . . . . . . Hacking | -11 -10 -10 -10 -9 -8 -7 -7 -7 -7 -6 -6 -6 -6 -5 -5 -5 -5 -5 -4 -4 --------- Run | Scr Mat Min Exi Min Mat Fac Low Low Dat Pro Fac Low Zio Pro Fac Upp Upp War Pro Fac Machines Accessed 43 | . 4 . 1 . 4 4 1 . 4 . 6 1 . . 8 1 . 6 . 3 Terminals 8 | . 2 . . . 1 3 . . . . 2 . . . . . . . . . Fabricators 4 | . . . . . . . . . . . . . . . 2 . . . . 2 Repair Stations 1 | . . . . . . . . . . . . . . . 1 . . . . . Recycling Units 9 | . 2 . . . 2 . . . . . 2 . . . 3 . . . . . Scanalyzers 4 | . . . . . 1 . . . . . 1 . . . 2 . . . . . Garrison Access 3 | . . . . . . 1 . . . . 1 . . . . . . . . 1 Total Hacks 111 | . 9 . 1 . 12 11 2 . 28 . 12 1 . . 12 1 . 18 . 4 Successful 86 | . 6 . 1 . 5 5 2 . 28 . 7 1 . . 8 1 . 18 . 4 Failed 25 | . 3 . . . 7 6 . . . . 5 . . . 4 . . . . . Catastrophic 2 | . 1 . . . . 1 . . . . . . . . . . . . . . Database Lockouts . | . . . . . . . . . . . . . . . . . . . . . Manual 42 | . 4 . . . 9 4 . . . . 4 . 2 . 6 . . 1 . 12 Terminals 25 | . 7 . . . 6 6 . . . . 6 . . . . . . . . . Fabricators 5 | . . . . . . . . . . . . . . . 2 . . . . 3 Repair Stations 2 | . . . . . . . . . . . . . . . 2 . . . . . Recycling Units 11 | . 2 . . . 4 . . . . . 2 . . . 3 . . . . . Scanalyzers 9 | . . . . . 2 . . . . . 2 . . . 5 . . . . . Garrison Access 8 | . . . . . . 5 . . . . 2 . . . . . . . . 1 Terminal Hacks 64 | . 4 . 1 . 1 4 2 . 28 . 4 1 . . . 1 . 18 . . Record 24 | . . . 1 . . . 2 . 11 . . . . . . . . 10 . . Part Schematic 8 | . . . . . . . . . 8 . . . . . . . . . . . Robot Schematic 6 | . . . . . . . . . 6 . . . . . . . . . . . Prototype ID Bank 12 | . . . . . 1 . . . 3 . 2 . . . . . . 6 . . Open Door 4 | . . . . . . . . . . . . 1 . . . 1 . 2 . . Branch Access Points 2 | . 1 . . . . 1 . . . . . . . . . . . . . . Unreport Threat 1 | . . . . . . 1 . . . . . . . . . . . . . . Locate Traps 5 | . 2 . . . . 1 . . . . 2 . . . . . . . . . Hauler Manifests 1 | . 1 . . . . . . . . . . . . . . . . . . . Zone Layout 1 | . . . . . . 1 . . . . . . . . . . . . . . Fabricator Hacks 3 | . . . . . . . . . . . . . . . 1 . . . . 2 Load Schematic 1 | . . . . . . . . . . . . . . . . . . . . 1 Build 2 | . . . . . . . . . . . . . . . 1 . . . . 1 Repair Station Hacks 2 | . . . . . . . . . . . . . . . 2 . . . . . Scan Component 1 | . . . . . . . . . . . . . . . 1 . . . . . Repair 1 | . . . . . . . . . . . . . . . 1 . . . . . Recycling Unit Hacks . | . . . . . . . . . . . . . . . . . . . . . Scanalyzer 4 | . . . . . 2 . . . . . . . . . 2 . . . . . Insert Component 3 | . . . . . 1 . . . . . . . . . 2 . . . . . Analyze 1 | . . . . . 1 . . . . . . . . . . . . . . . Garrison Access Hacks . | . . . . . . . . . . . . . . . . . . . . . Unauthorized Hacks 13 | . 2 . . . 2 1 . . . . 3 . . . 3 . . . . 2 Terminals 1 | . . . . . 1 . . . . . . . . . . . . . . . Track 1 | . . . . . 1 . . . . . . . . . . . . . . . Fabricators 1 | . . . . . . . . . . . . . . . . . . . . 1 Overload 1 | . . . . . . . . . . . . . . . . . . . . 1 Repair Stations . | . . . . . . . . . . . . . . . . . . . . . Recycling Units 8 | . 2 . . . 1 . . . . . 2 . . . 3 . . . . . Tunnel 8 | . 2 . . . 1 . . . . . 2 . . . 3 . . . . . Scanalyzers . | . . . . . . . . . . . . . . . . . . . . . Garrison Access 3 | . . . . . . 1 . . . . 1 . . . . . . . . 1 Jam 3 | . . . . . . 1 . . . . 1 . . . . . . . . 1 Data Cores Recovered . | . . . . . . . . . . . . . . . . . . . . . Used . | . . . . . . . . . . . . . . . . . . . . . Hacking Detections 17 | . 2 . . . 2 4 . . . . 4 . . . 4 . . . . 1 Full Trace Events 3 | . . . . . 2 . . . . . 1 . . . . . . . . . Feedback Events . | . . . . . . . . . . . . . . . . . . . . . Feedback Blocked . | . . . . . . . . . . . . . . . . . . . . . Robot Schematics Acquired 6 | . . . . . . . . . 6 . . . . . . . . . . . Robots Built 3 | . . . . . . . . . . . . . . . 3 . . . . . Matter 318 | . . . . . . . . . . . . . . . 318 . . . . . Time 169 | . . . . . . . . . . . . . . . 169 . . . . . Total Robot Build Rating 18 | . . . . . . . . . . . . . . . 18 . . . . . Part Schematics Acquired 9 | . . . . . 1 . . . 8 . . . . . . . . . . . Parts Built . | . . . . . . . . . . . . . . . . . . . . . Matter 285 | . . . . . . . . . . . . . . . . . . . . 285 Time 152 | . . . . . . . . . . . . . . . . . . . . 152 Total Part Build Rating . | . . . . . . . . . . . . . . . . . . . . . Parts Repaired 1 | . . . . . . . . . . . . . . . 1 . . . . . Time 44 | . . . . . . . . . . . . . . . 44 . . . . . Parts Recycled . | . . . . . . . . . . . . . . . . . . . . . Recycled Matter . | . . . . . . . . . . . . . . . . . . . . . Retrieved Matter . | . . . . . . . . . . . . . . . . . . . . . Retrieved Components . | . . . . . . . . . . . . . . . . . . . . . Parts Scanalyzed 1 | . . . . . 1 . . . . . . . . . . . . . . . Part Schematics Acquired 1 | . . . . . 1 . . . . . . . . . . . . . . . Parts Damaged . | . . . . . . . . . . . . . . . . . . . . . Bothacking | -11 -10 -10 -10 -9 -8 -7 -7 -7 -7 -6 -6 -6 -6 -5 -5 -5 -5 -5 -4 -4 ------------ Run | Scr Mat Min Exi Min Mat Fac Low Low Dat Pro Fac Low Zio Pro Fac Upp Upp War Pro Fac Used RIF Installer . | . . . . . . . . . . . . . . . . . . . . . Robots Hacked . | . . . . . . . . . . . . . . . . . . . . . Non-combat . | . . . . . . . . . . . . . . . . . . . . . Combat . | . . . . . . . . . . . . . . . . . . . . . Robot Hacks Applied . | . . . . . . . . . . . . . . . . . . . . . Relay Couplers Released 6 | . . . . . . 4 . . . . . . . . . . . . . 2 Machine Destruction 2 | . . . . . . . . . . . . . . . . . . . . 2 Programmers 4 | . . . . . . 4 . . . . . . . . . . . . . . Robots Rewired 2 | . . . . . . . . 2 . . . . . . . . . . . . Allies Hacked . | . . . . . . . . . . . . . . . . . . . . . Hacks Repelled . | . . . . . . . . . . . . . . . . . . . . . Allies | -11 -10 -10 -10 -9 -8 -7 -7 -7 -7 -6 -6 -6 -6 -5 -5 -5 -5 -5 -4 -4 -------- Run | Scr Mat Min Exi Min Mat Fac Low Low Dat Pro Fac Low Zio Pro Fac Upp Upp War Pro Fac Total Allies 21 | . . . . 6 . . . 2 . 1 . . 4 . 4 . . . . 4 Largest Group 5 | . . . . 5 4 . . 2 . . . . 4 4 4 . . . . 4 Highest-Rated Group 346 | . . . . 85 69 . . 40 . . . . 148 148 270 . . . . 346 Highest-Rated Ally 180 | . . . . 31 31 . . 20 . . . . 38 38 180 . . . . 103 Zionite Dispatches 4 | . . . . . . . . . . . . . . . 1 . . . . 3 Heavy 1 | . . . . . . . . . . . . . . . . . . . . 1 Recon 1 | . . . . . . . . . . . . . . . . . . . . 1 Hacker 1 | . . . . . . . . . . . . . . . . . . . . 1 Hero 1 | . . . . . . . . . . . . . . . 1 . . . . . Total Orders 6 | . . . . . . . . . . . 3 1 . . . . . . . 2 FOLLOW 1 | . . . . . . . . . . . 1 . . . . . . . . . EXPLORE 5 | . . . . . . . . . . . 2 1 . . . . . . . 2 Ally Attacks 86 | . . . . 7 10 . . 1 . 2 . . . 18 30 . . . . 18 Total Damage 3498 | . . . . 110 122 . . 26 . 48 . . . 707 1103 . . . . 1382 Kills 20 | . . . . 1 3 . . . . 1 . . . 4 4 . . . . 7 Allies Corrupted 2 | . . . . . . . . . . . . 1 . . 1 . . . . . Allies Melted . | . . . . . . . . . . . . . . . . . . . . . Intel | -11 -10 -10 -10 -9 -8 -7 -7 -7 -7 -6 -6 -6 -6 -5 -5 -5 -5 -5 -4 -4 ------- Run | Scr Mat Min Exi Min Mat Fac Low Low Dat Pro Fac Low Zio Pro Fac Upp Upp War Pro Fac Robot Analysis Total . | . . . . . . . . . . . . . . . . . . . . . Derelict Logs Recovered 11 | . . 1 . . . . 3 . . 1 . . 2 1 . 1 1 . 1 . Drone Launches 2 | . . . . . . . . . . . 2 . . . . . . . . . Drone Recoveries . | . . . . . . . . . . . . . . . . . . . . . Exploration | -11 -10 -10 -10 -9 -8 -7 -7 -7 -7 -6 -6 -6 -6 -5 -5 -5 -5 -5 -4 -4 ------------- Run | Scr Mat Min Exi Min Mat Fac Low Low Dat Pro Fac Low Zio Pro Fac Upp Upp War Pro Fac Turns Passed 18104 | . 754 361 497 387 893 1020 814 1180 141 877 971 458 1572 562 2116 1986 1314 1407 286 508 Spaces Moved 9496 | 1 334 190 231 152 375 512 501 552 78 397 412 245 851 278 878 1047 682 936 305 539 Core 106 | . . . . . . . . . . . . . . . . . . 90 . 16 Treads 5541 | . . . . . . . . 129 78 397 412 245 851 278 878 1047 682 544 . . Legs 2785 | 1 334 190 231 152 375 512 501 423 . . . . . . . . . 66 . . Wheels . | . . . . . . . . . . . . . . . . . . . . . Hover 736 | . . . . . . . . . . . . . . . . . . 235 140 361 Flight 328 | . . . . . . . . . . . . . . . . . . 1 165 162 Fastest Speed 24 | 120 120 180 180 210 180 155 155 126 182 182 182 182 182 182 183 183 183 40 24 28 Average Speed 165 | 120 178 180 206 234 180 157 155 181 182 182 182 182 182 184 184 183 183 129 71 66 Slowest Speed 240 | 120 180 180 240 240 180 183 155 186 182 182 182 182 182 187 185 183 183 230 200 190 Overloaded Moves 287 | . . . . . . . . . . . . . . . . . . 81 206 . Propulsion Burnouts . | . . . . . . . . . . . . . . . . . . . . . Robots Hopped 4 | . . . . . . . . . . . . . . . . . . . 1 3 Cave-ins Triggered . | . . . . . . . . . . . . . . . . . . . . . Exploration Rate (%) 52 | 2 67 41 61 39 32 13 69 69 68 55 13 59 89 50 23 97 82 85 54 27 Regions Visited 20 Branch Regions 14 Pre-discovered Areas 15 | . 2 1 1 . 1 . 1 . 1 1 2 . 1 . 3 . 1 . . . Known Exits Taken 11 | . 1 . . . . 1 . . . . 1 1 1 1 1 1 1 1 1 . Unknown Exits Taken 9 | 1 . 1 1 1 1 . 1 1 1 1 . . . . . . . . . . Scrap Searched 18 | . . . . . . . 1 1 . 3 . 1 4 1 . 3 2 . 2 . Spaces Dug 91 | . . . . . . 14 1 . . . 3 . . 1 29 15 13 14 . 1 Terrain Destroyed 567 | . 30 . . . 27 49 2 44 . 23 3 . . 15 140 51 14 168 . 1 Melee 79 | . . . . . . 13 1 . . . 3 . . 1 20 15 13 12 . 1 Projectile 48 | . . . . . 12 8 1 6 . . . . . . 14 3 1 3 . . AOE 440 | . 30 . . . 15 28 . 38 . 23 . . . 14 106 33 . 153 . . Actions | -11 -10 -10 -10 -9 -8 -7 -7 -7 -7 -6 -6 -6 -6 -5 -5 -5 -5 -5 -4 -4 --------- Run | Scr Mat Min Exi Min Mat Fac Low Low Dat Pro Fac Low Zio Pro Fac Upp Upp War Pro Fac Total 11122 | . 428 197 253 179 489 638 523 667 77 541 535 257 881 318 1188 1087 735 1071 370 688 Wait 575 | . 15 2 . 14 34 31 . 30 . 125 48 4 3 1 128 . 36 19 45 40 Move 9468 | . 333 189 230 151 374 511 500 551 77 396 411 244 850 277 877 1046 681 935 302 533 Hop 4 | . . . . . . . . . . . . . . . . . . . 1 3 Pick Up 161 | . 18 . 16 4 14 5 3 22 . 5 7 . 7 8 13 1 . 21 5 12 Fast Attach 85 | . 5 . 1 3 3 8 1 2 . . 3 . 6 3 13 3 1 16 4 13 Attach 66 | . 4 . . . 7 4 . 9 . . 3 . 1 2 7 1 . 10 6 12 Detach 44 | . 1 . . 3 1 3 1 2 . . . . 1 1 4 2 1 10 4 10 Swap 110 | . 2 . 1 . 2 10 1 6 . 5 11 1 . 12 35 8 2 10 . 4 Drop 122 | . 10 . 5 1 9 11 3 2 . . 10 . 13 9 18 4 1 11 1 14 Fire 307 | . 40 6 . 3 45 31 4 30 . 5 37 . . 3 70 7 . 24 2 . Melee 89 | . . . . . . 16 5 . . . 3 . . 1 22 15 13 13 . 1 Ram . | . . . . . . . . . . . . . . . . . . . . . Kick 8 | . . . . . . 8 . . . . . . . . . . . . . . Crush 1 | . . . . . . . . . . . 1 . . . . . . . . . Escape Stasis 46 | . . . . . . . . . . . . . . . . . . . . 46 Rewire 13 | . . . . . . . . 13 . . . . . . . . . . . . Trap 22 | . . . . . . . 5 . . 5 . 8 . 1 1 . . 2 . . Miscellaneous 1 | . . . . . . . . . . . 1 . . . . . . . . . Route ------- -11/Scrapyard -10/Materials (discovered 3 exits: [*Mat x2] / *Min) -10/Mines -10/Exiles -9/Mines -8/Materials -7/Factory (discovered 2 exits: *Low x2) -7/Lower Caves -7/Lower Caves -7/Data Miner -6/Proximity Caves -6/Factory (discovered 3 exits: *Fac / *Low x2) -6/Lower Caves -6/Zion -5/Proximity Caves -5/Factory (discovered 3 exits: Fac / *Upp x2) -5/Upper Caves -5/Upper Caves -5/Warlord -4/Proximity Caves -4/Factory (discovered 1 exit: *Arm) History --------- Turn | Location | Event 1 | -11/Scrapyard | Discovered new exit (range 0) 1 | -11/Scrapyard | Entered Materials 176 | -10/Materials | Lost 3 parts (1n2w) 299 | -10/Materials | Discovered new exit (range 15) 317 | -10/Materials | Build established: Mutant 482 | -10/Materials | Identified exit to Mines 567 | -10/Materials | Discovered new exit (range 9) 755 | -10/Materials | Entered Mines 854 | -10/Mines | Assisted by bots powering up and referring to "LRC-V3" 896 | -10/Mines | Learned location of Storage (-8) 1035 | -10/Mines | Deemed a non-threat by the Exiles lab entrance 1036 | -10/Mines | Discovered new exit (range 5) 1116 | -10/Mines | Entered Exiles 1167 | -10/Exiles | Met 8R-AWN 1196 | -10/Exiles | Met EX-HEX 1247 | -10/Exiles | Met EX-BIN 1272 | -10/Exiles | Met EX-DEC 1279 | -10/Exiles | Learned location of Zion (-6) 1594 | -10/Exiles | Discovered new exit (range 10) 1613 | -10/Exiles | Entered Mines 1641 | -9/Mines | Build established: Hauler-Mutant 1781 | -9/Mines | Assisted by bots powering up and referring to "LRC-V3" 1906 | -9/Mines | Discovered new exit (range 13) 1936 | -9/Mines | Escorted by a lone wolf Derelict 2000 | -9/Mines | Entered Materials 2000 | -8/Materials | Accompanied by 4 allies 2000 | -8/Materials | Evolved 4 slots: Propulsion x1, Utility x1, Weapon x2 2230 | -8/Materials | Destroyed 8 combat bots 2256 | -8/Materials | Discovered new exit (range 5) 2525 | -8/Materials | Build established: Scavenger-Gunner 2893 | -8/Materials | Entered Factory 2893 | -7/Factory | Evolved 2 slots: Propulsion x1, Utility x1 3170 | -7/Factory | Identified exit to Lower Caves 3564 | -7/Factory | Build established: Hauler-Tank 3913 | -7/Factory | Entered Lower Caves 4078 | -7/Lower Caves | Encountered a Warlord checkpoint 4215 | -7/Lower Caves | Build established: Hauler-Skirmisher 4264 | -7/Lower Caves | Learned location of 1 exit from Factory 4685 | -7/Lower Caves | Discovered new exit (range 10) 4727 | -7/Lower Caves | Entered another Lower Caves area 4747 | -7/Lower Caves | Attracted the attention of an 0b10 outpost 4833 | -7/Lower Caves | Destroyed 13 combat bots 5185 | -7/Lower Caves | Build established: Hauler-Tank 5651 | -7/Lower Caves | Attracted the attention of an 0b10 checkpoint 5862 | -7/Lower Caves | Discovered new exit (range 6) 5907 | -7/Lower Caves | Entered Data Miner 5907 | -7/Data Miner | Discovered new exit (range 6) 5942 | -7/Data Miner | Met Data Miner 5986 | -7/Data Miner | Learned location of Section 7 (-3) 5986 | -7/Data Miner | Acquired the access code to Warlord's prototype stash 6000 | -7/Data Miner | Received God Mode back door access code from Data Miner 6048 | -7/Data Miner | Entered Proximity Caves 6903 | -6/Proximity Caves | Discovered new exit (range 12) 6925 | -6/Proximity Caves | Entered Factory 6925 | -6/Factory | Evolved 2 slots: Utility x2 6926 | -6/Factory | Identified exit to Lower Caves 7051 | -6/Factory | Incoming investigation squad redirected 7158 | -6/Factory | Garrison activated, responded to threat 7234 | -6/Factory | Destroyed 9 combat bots 7243 | -6/Factory | Found Prototype Launcher 7277 | -6/Factory | Incoming investigation squad redirected 7348 | -6/Factory | Discovered new exit (range 16) 7377 | -6/Factory | Identified exit to Factory 7794 | -6/Factory | Discovered exit to Lower Caves (range 14) 7871 | -6/Factory | Incoming investigation squad redirected 7896 | -6/Factory | Entered Lower Caves 7896 | -6/Lower Caves | Accompanied by 1 ally 8202 | -6/Lower Caves | Build established: Hauler-Skirmisher 8350 | -6/Lower Caves | A Derelict revealed a hidden shortcut to a safe place 8352 | -6/Lower Caves | Identified exit to Zion 8354 | -6/Lower Caves | Entered Zion 8418 | -6/Zion | Received a hallucinogenic algorithm 8433 | -6/Zion | Discovered new exit (range 12) 8935 | -6/Zion | Imprinted 8937 | -6/Zion | Declared Zion's savior 9033 | -6/Zion | Learned Factory machine intel 9079 | -6/Zion | Learned 4 Factory zone layouts 9172 | -6/Zion | Found Prototype Device 9172 | -6/Zion | Identified Mobile Refinery Mk. CCLXVII 9236 | -6/Zion | Build established: Messiah-Skirmisher 9591 | -6/Zion | Found Prototype Launcher 9591 | -6/Zion | Identified Rocket Array 9598 | -6/Zion | Found Prototype Launcher 9598 | -6/Zion | Identified Gui. Missile Launcher 9777 | -6/Zion | Given A8's code to call for help 9919 | -6/Zion | Identified exit to Proximity Caves 9926 | -6/Zion | Entered Proximity Caves 9926 | -5/Proximity Caves | Accompanied by 4 allies 10034 | -5/Proximity Caves | Learned 8 Factory zone layouts 10059 | -5/Proximity Caves | Found Alien Artifact 10065 | -5/Proximity Caves | Identified Core Expander 10065 | -5/Proximity Caves | Installed Core Expander, added new Power slot 10459 | -5/Proximity Caves | Discovered exit to Factory (range 15) 10488 | -5/Proximity Caves | Entered Factory 10488 | -5/Factory | Accompanied by 1 ally 10488 | -5/Factory | Evolved 2 slots: Utility x2 10489 | -5/Factory | Identified exit to Upper Caves 10490 | -5/Factory | Identified exit to Factory 10491 | -5/Factory | Loaded intel: 236 machine locations 10678 | -5/Factory | Identified Scatter Rocket Array 10755 | -5/Factory | Zion hero teleported in (7V-RTL) 10795 | -5/Factory | Build established: Messiah-Tank 11101 | -5/Factory | Fabricated B-60 Warrior? 11417 | -5/Factory | Found Prototype Device 11424 | -5/Factory | Found Adv. Powered Armor 11597 | -5/Factory | Identified 7V-RTL's Ultimate Field 11875 | -5/Factory | Terminal network hard line cut 11935 | -5/Factory | Incoming investigation squad redirected 11992 | -5/Factory | Repaired Med. Treads 12026 | -5/Factory | First assault squad dispatched 12604 | -5/Factory | Entered Upper Caves 13941 | -5/Upper Caves | Attracted the attention of an 0b10 checkpoint 14142 | -5/Upper Caves | Learned Factory emergency access door positions 14193 | -5/Upper Caves | Discovered new exit (range 11) 14255 | -5/Upper Caves | Build established: Messiah-Skirmisher 14589 | -5/Upper Caves | Identified exit to Upper Caves 14590 | -5/Upper Caves | Entered another Upper Caves area 15707 | -5/Upper Caves | Discovered new exit (range 5) 15713 | -5/Upper Caves | Identified exit to Warlord 15904 | -5/Upper Caves | Entered Warlord 15933 | -5/Warlord | System corruption reached 10% 15970 | -5/Warlord | System corruption cleaned by Quarantine Array 16340 | -5/Warlord | Visited the Vortex Lab 16351 | -5/Warlord | Warlord's base attacked by MAIN.C 16355 | -5/Warlord | Found Prototype Piercing Weapon 16358 | -5/Warlord | Found Prototype Piercing Weapon 16361 | -5/Warlord | Found Prototype Energy Gun 16364 | -5/Warlord | Found Prototype Energy Gun 16469 | -5/Warlord | Rebuked by Warlord 16486 | -5/Warlord | Opened Warlord's prototype stash 16492 | -5/Warlord | Found Prototype Reactor 16492 | -5/Warlord | Identified Vortex Chain Reactor 16500 | -5/Warlord | Found Prototype Processor 16512 | -5/Warlord | Found Prototype Processor 16636 | -5/Warlord | Warlord forces counterattacked 16794 | -5/Warlord | Identified Exp. Targeting Computer 16858 | -5/Warlord | Opened side exit 16875 | -5/Warlord | Build established: Messiah-Mutant 16880 | -5/Warlord | Spotted Striker 16911 | -5/Warlord | Discovered new exit (range 14) 16951 | -5/Warlord | Spotted Executioner 16951 | -5/Warlord | Spotted Striker 16953 | -5/Warlord | Spotted Striker 16991 | -5/Warlord | Identified Vortex Shotgun (x2) 17003 | -5/Warlord | Destroyed 10 combat bots 17005 | -5/Warlord | Destroyed Striker 17021 | -5/Warlord | Core integrity fell below 50% 17048 | -5/Warlord | Lost 12 parts (1p4n3u4w) 17181 | -5/Warlord | Found Signal Generator 17218 | -5/Warlord | Spotted Striker 17234 | -5/Warlord | Spotted Executioner 17302 | -5/Warlord | Spotted Striker 17310 | -5/Warlord | Identified exit to Proximity Caves 17311 | -5/Warlord | Entered Proximity Caves 17339 | -4/Proximity Caves | Learned Research stockpile data 17345 | -4/Proximity Caves | Spotted B-86 Titan 17354 | -4/Proximity Caves | Lost 6 parts (3n3w) 17576 | -4/Proximity Caves | Discovered exit to Factory (range 6) 17597 | -4/Proximity Caves | Entered Factory 17597 | -4/Factory | Evolved 2 slots: Propulsion x2 17643 | -4/Factory | Zion Recon squad teleported in 17727 | -4/Factory | Spotted B-86 Titan 17792 | -4/Factory | Incoming investigation squad redirected 17834 | -4/Factory | Lost 7 parts (2p3n2u) 17838 | -4/Factory | Core integrity fell below 50% 17854 | -4/Factory | Zion Heavy squad teleported in 17906 | -4/Factory | Zion Hacker squad teleported in 18062 | -4/Factory | Core integrity fell below 20% 18100 | -4/Factory | Discovered new exit (range 14) 18105 | -4/Factory | Identified exit to Armory 18105 | -4/Factory | Destroyed by G-67 Veteran with Electrolaser Last Messages --------------- 18081_ Exp. Energy Well destroyed. 18081_ Penetrated by Slug. 18081_ Force Lance destroyed. 18088_ Dropped Adv. Heat Sink. 18092_ Y-72 Warden: "LOCATED POTENTIAL SOURCE OF ANOMALOUS SIGNAL. NEUTRALIZING." 18092_ Adv. Armor Integrity Analyzer destroyed. 18095_ Connecting with Fabricator... >>Force(Overload) EM_IMPRINTER_OVERLOAD 18095_ ALERT: Suspicious activity at Fabricator F004. Dispatching Investigation squad. 18097_ Slug penetrates Wall. 18097_ Acquired Nuclear Pulse Array. 18100_ EXIT=FOUND 18102_ Penetrated by Slug. 18102_ Imp. Gyrokinetic Inverter destroyed. 18103_ K-01 Serf cleans the Machine. 18103_ Machine disabled. 18105_ EXIT=IDENTIFIED: ARMORY Map ----- +----------------------------------------------------+ | ????????????# ????# #????????# +????+? | | ????????????# ?????# #????????#########?????? | | ????????????#+########### #??????????????????????? | | ?????#####??# # # #??????????????????????? | | ?????# ! ?# # # #?######???????????????? | | ?????# ?# # # #? #???????????????? | | ?????# """ # # # # ===#???????????????? | | ?????# """ # ##+##+##+## # = == #???????????????? | | ?????# """ + ! + == #???????????????? | | ?????# # ########+#### #???????????????? | | ?????########+#???????????? ! #???????????????? | | ????????# #?????????????# ####???????????????? | | ????????#"" " #??????????????##??????????????????? | | ????????#" " #??????????????????????????????????? | | ????????#"F " #??????????????????????????????????? | | ????????#"" " #??????????????????????????????????? | | ????????# " #??????????????????????????????????? | | ????????# ! " #??????????????????????????????????? | | ????????# " #?#######+#####+####???????????????? | | ????????# " #?#""""" """???????????????? | | ???????## " #?#"[[" "????????????????? | | ???????#" #?#"[[ ?????????????????? | | ???????## #?#"[[ """ """??????????????????? | | #####/#### "" "## ##???????????????????? | | ?""" #" "#Y #" "#????????????? | | ?""" kg @ +????????????? | | ?""" / > Y +????????????? | | / k +????????????? | | ! k #" "# #" "#????????????? | | #################""" "## Y ##? """#????????????? | | ????????????????#"[[ """ ""???[["?????????????? | | ????????????????#"[[ ???["?????????????? | | ????????????????#"[[" ?????????????????? | | ????????????????#""""" ""????????????????? | | ????????????????#######/#####g###????????????????? | | ????????????????????????????? ??????????????????? | | ????????????????????????????? " ?????????????????? | | ??????????????????????????????"""????????????????? | | ?????????????????????????????????????????????????? | | ?????????????????????????????????????????????????+ | | ?????????????????????????????????????????????????? | | ?????????????????????????????????????????????????? | | ?????????????????????????????????????????????????? | | ?????????????????????????????????????????????????? | | ?????????????????????????????????????????????????? | | ?????????????????????????????????????????????????? | | ?????????????????????????????????????????????????? | | ?????????????????????????????????????????????????? | | ?????????????????????????????????????????????????? | | ?????????????????????????????????????????????????? | +----------------------------------------------------+ Best States ------------- Heat Dissipation 98 Coolant Potential 80 Energy Generation 55 Energy Capacity 2100 Matter Stores 300 Matter Capacity 300 Sight Range 16 Robot Scan Range 20 Terrain Scan Density 10 Base Temperature (-) 150 Armor Coverage 700 Resistance: EM 15 Evasion (%) 65 Targeting Accuracy 8 Melee Accuracy 20 Armor Integrity Analysis 66 Recoil Reduction 4 Defensive Hacking 10 Item Schematics ----------------- Humpback | -8/Materials | Scanalyzed Combat Drone Bay | -7/Data Miner | Free Lgt. Regenerative Plating | -7/Data Miner | Free Cmb. Gravmag System | -7/Data Miner | Free Exp. Cesium-ion Thruster | -7/Data Miner | Free Exp. Sensor Array | -7/Data Miner | Free Exp. Transmission Jammer | -7/Data Miner | Free Exp. ECM Suite | -7/Data Miner | Free Cloaking Device | -7/Data Miner | Free Robot Schematics ------------------ S-27 Virus | -7/Data Miner | Free G-50 Soldier | -7/Data Miner | Free G-67 Veteran | -7/Data Miner | Free H-66 Slayer | -7/Data Miner | Free P-70 Sage | -7/Data Miner | Free I-36 Angel | -7/Data Miner | Free Fabricated ------------ B-60 Warrior | x3 | -5/Factory | Preloaded Alien Tech Used ----------------- Core Expander Achievements -------------- Heroic Deeds Challenges ------------ None Game ------ Seed TargetSuspensionMatrix Manual? 0 Play Time 03:05:04 Cumulative 239.3 hours Start 2020.04.20 @ 18:45:52 End 2020.04.20 @ 22:50:13 Sessions 5 Manual Loads 0 Difficulty Rogue Special Mode None Game No. 120 Rogue 119 Adventurer 0 Explorer 1 Win Type - Total 13 Types 9/0/4/0/0/0/0 Lore% 78 Gallery% 84 Achievement% 67 Wizard Run 0 Options --------- ASCII 0 Keyboard 1 Movement Numpad Keybinds 0 Fullscreen 2 Font 36/Terminus Map View 76x50 Tactical HUD 1 Map Filters NONE Filters NONE Steam 1 RUN: 339b33e2-e6cf-4dfc-9b26-89bf856fc31d